[Event "*** Titled Tuesday Blitz"]
[Site "Chess.com"]
[Date "2021.02.02"]
[Round "7"]
[White "rynos0411"]
[Black "MaevskiyNikolay"]
[Result "0-1"]
[WhiteElo "2402"]
[BlackElo "2576"]
[TimeControl "180+1"]
[EndTime "11:19:36 PST"]
[Termination "MaevskiyNikolay won on time"]

1. e4 {[%clk 0:03:00.9]} 1... c6 {[%clk 0:02:54.8]} 2. d4 {[%clk 0:02:59.6]}
2... d5 {[%clk 0:02:55.2]} 3. e5 {[%clk 0:03:00.2]} 3... Bf5 {[%clk 0:02:55.4]}
4. Nd2 {[%clk 0:03:00.4]} 4... e6 {[%clk 0:02:55.1]} 5. Nb3 {[%clk 0:03:00.5]}
5... Nd7 {[%clk 0:02:54.9]} 6. Be3 {[%clk 0:02:56.5]} 6... Ne7 {[%clk
0:02:53.6]} 7. Nf3 {[%clk 0:02:56.2]} 7... Bg6 {[%clk 0:02:53.2]} 8. Be2 {[%clk
0:02:56.1]} 8... Nf5 {[%clk 0:02:53.5]} 9. Qd2 {[%clk 0:02:50.1]} 9... a5 {[%clk
0:02:51.8]} 10. a4 {[%clk 0:02:49.2]} 10... Qb6 {[%clk 0:02:47.6]} 11. O-O
{[%clk 0:02:45.5]} 11... Be7 {[%clk 0:02:47.9]} 12. Bg5 {[%clk 0:02:40]} 12...
Bb4 {[%clk 0:02:25.3]} 13. c3 {[%clk 0:02:39.3]} 13... Bf8 {[%clk 0:02:22.3]}
14. Nc1 {[%clk 0:02:36]} 14... h6 {[%clk 0:02:22.8]} 15. Bf4 {[%clk 0:02:36]}
15... Be7 {[%clk 0:02:23]} 16. Bd3 {[%clk 0:02:31.8]} 16... c5 {[%clk 0:02:22]}
17. Bb5 {[%clk 0:02:15.8]} 17... cxd4 {[%clk 0:02:09.6]} 18. cxd4 {[%clk
0:02:09.6]} 18... Bb4 {[%clk 0:02:09.2]} 19. Qd1 {[%clk 0:02:02.9]} 19... Rd8
{[%clk 0:02:00.9]} 20. Ne2 {[%clk 0:01:45.3]} 20... O-O {[%clk 0:01:58.5]} 21.
Rc1 {[%clk 0:01:42.8]} 21... Nb8 {[%clk 0:01:57.5]} 22. Bd2 {[%clk 0:01:38.7]}
22... Nc6 {[%clk 0:01:39.8]} 23. Bxb4 {[%clk 0:01:23]} 23... Nxb4 {[%clk
0:01:35.5]} 24. Qd2 {[%clk 0:01:23.2]} 24... Rc8 {[%clk 0:01:32.8]} 25. h4
{[%clk 0:01:10.1]} 25... Ne7 {[%clk 0:01:28.9]} 26. Nf4 {[%clk 0:01:07.6]} 26...
Be4 {[%clk 0:01:27.8]} 27. Be2 {[%clk 0:00:25.8]} 27... Nf5 {[%clk 0:01:18.2]}
28. Rxc8 {[%clk 0:00:17.8]} 28... Rxc8 {[%clk 0:01:17.4]} 29. Rc1 {[%clk
0:00:18.7]} 29... Rc6 {[%clk 0:01:06]} 30. Rc3 {[%clk 0:00:10.1]} 30... Bxf3
{[%clk 0:01:03.8]} 31. Bxf3 {[%clk 0:00:02.2]} 31... Qxd4 {[%clk 0:01:00.1]} 32.
Qxd4 {[%clk 0:00:01.7]} 32... Nxd4 {[%clk 0:01:00.2]} 33. Bd1 {[%clk 0:00:02.6]}
33... Na2 {[%clk 0:00:52.5]} 34. Rxc6 {[%clk 0:00:02.2]} 34... Nxc6 {[%clk
0:00:50.6]} 35. Nd3 {[%clk 0:00:03.1]} 35... Nab4 {[%clk 0:00:50.2]} 36. Nxb4
{[%clk 0:00:02.8]} 36... Nxb4 {[%clk 0:00:47.2]} 37. Kf1 {[%clk 0:00:03]} 37...
g5 {[%clk 0:00:45.6]} 38. hxg5 {[%clk 0:00:02.7]} 38... hxg5 {[%clk 0:00:46]}
39. g3 {[%clk 0:00:03.6]} 39... Nd3 {[%clk 0:00:44.8]} 40. b3 {[%clk 0:00:01.6]}
40... Nxe5 {[%clk 0:00:44.7]} 41. Ke2 {[%clk 0:00:02.4]} 41... Nc6 {[%clk
0:00:42.4]} 42. Ke3 {[%clk 0:00:02.3]} 42... f5 {[%clk 0:00:40.2]} 43. Be2
{[%clk 0:00:01.6]} 43... Kf7 {[%clk 0:00:40]} 44. Bb5 {[%clk 0:00:02.5]} 44...
Nb4 {[%clk 0:00:36.7]} 45. Kd4 {[%clk 0:00:02.7]} 45... b6 {[%clk 0:00:37.1]}
46. Ke5 {[%clk 0:00:02.8]} 46... Ke7 {[%clk 0:00:37.4]} 47. f4 {[%clk
0:00:02.8]} 47... gxf4 {[%clk 0:00:33]} 48. Kxf4 {[%clk 0:00:03.4]} 48... Kf6
{[%clk 0:00:32.7]} 49. Be2 {[%clk 0:00:01.4]} 49... Nc6 {[%clk 0:00:31]} 50. Ke3
{[%clk 0:00:02.3]} 50... e5 {[%clk 0:00:29.8]} 51. Bb5 {[%clk 0:00:03.2]} 51...
Nd4 {[%clk 0:00:29.4]} 52. Bf1 {[%clk 0:00:02.5]} 52... Nxb3 {[%clk 0:00:29.4]}
0-1

[Event "*** Titled Tuesday Blitz"]
[Site "Chess.com"]
[Date "2021.02.02"]
[Round "7"]
[White "rasmussvane"]
[Black "ChessWarrior7197"]
[Result "0-1"]
[WhiteElo "2876"]
[BlackElo "2925"]
[TimeControl "180+1"]
[EndTime "11:19:37 PST"]
[Termination "ChessWarrior7197 won by resignation"]

1. Nf3 {[%clk 0:03:00.9]} 1... d5 {[%clk 0:02:59.8]} 2. g3 {[%clk 0:03:01.3]}
2... Nd7 {[%clk 0:02:59.6]} 3. d4 {[%clk 0:03:01.8]} 3... Nb6 {[%clk 0:02:58.6]}
4. Nc3 {[%clk 0:03:02.2]} 4... Bf5 {[%clk 0:02:58.7]} 5. a4 {[%clk 0:03:01.7]}
5... a5 {[%clk 0:02:58.5]} 6. Nh4 {[%clk 0:03:02.3]} 6... e6 {[%clk 0:02:58.4]}
7. Nxf5 {[%clk 0:02:54.6]} 7... exf5 {[%clk 0:02:59.3]} 8. Qd3 {[%clk
0:02:55.5]} 8... g6 {[%clk 0:02:53.2]} 9. Bg2 {[%clk 0:02:53.9]} 9... Nf6 {[%clk
0:02:53.6]} 10. O-O {[%clk 0:02:53.8]} 10... Bg7 {[%clk 0:02:51.7]} 11. f3
{[%clk 0:02:53.7]} 11... O-O {[%clk 0:02:51.3]} 12. Rd1 {[%clk 0:02:46]} 12...
Re8 {[%clk 0:02:44.7]} 13. e4 {[%clk 0:02:46.2]} 13... fxe4 {[%clk 0:02:35.6]}
14. fxe4 {[%clk 0:02:47.1]} 14... dxe4 {[%clk 0:02:35.9]} 15. Nxe4 {[%clk
0:02:47.9]} 15... Nxe4 {[%clk 0:02:13.6]} 16. Bxe4 {[%clk 0:02:48.8]} 16... c6
{[%clk 0:02:13.7]} 17. c3 {[%clk 0:02:48.4]} 17... Nd7 {[%clk 0:02:09.7]} 18.
Bg2 {[%clk 0:02:36.5]} 18... Qb6 {[%clk 0:02:00.3]} 19. Qf3 {[%clk 0:02:31.8]}
19... Ne5 {[%clk 0:01:56.9]} 20. Qf2 {[%clk 0:02:25.6]} 20... Nc4 {[%clk
0:01:55.3]} 21. Bf1 {[%clk 0:02:17.3]} 21... Qb3 {[%clk 0:01:54.1]} 22. Re1
{[%clk 0:02:11.9]} 22... Nd6 {[%clk 0:01:41.3]} 23. Bf4 {[%clk 0:02:07.9]} 23...
Ne4 {[%clk 0:01:27]} 24. Qg2 {[%clk 0:02:05.8]} 24... Nf6 {[%clk 0:01:23.7]} 25.
Bd3 {[%clk 0:01:29.3]} 25... Nd5 {[%clk 0:01:19.8]} 26. Qc2 {[%clk 0:01:21.3]}
26... Qb6 {[%clk 0:01:04.7]} 27. Bd6 {[%clk 0:01:21.2]} 27... Bxd4+ {[%clk
0:00:57.4]} 28. cxd4 {[%clk 0:01:22.1]} 28... Qxd4+ {[%clk 0:00:57.5]} 29. Qf2
{[%clk 0:00:23.8]} 29... Qxd3 {[%clk 0:00:57.5]} 30. Be5 {[%clk 0:00:22.8]}
30... f6 {[%clk 0:00:53.1]} 31. Bd4 {[%clk 0:00:15.3]} 31... Kf7 {[%clk
0:00:46.3]} 32. Rad1 {[%clk 0:00:13.8]} 32... Rxe1+ {[%clk 0:00:46.2]} 33. Rxe1
{[%clk 0:00:14.7]} 33... Re8 {[%clk 0:00:46.1]} 34. Rxe8 {[%clk 0:00:12.7]}
34... Kxe8 {[%clk 0:00:47]} 35. Bxf6 {[%clk 0:00:10.9]} 35... Qb1+ {[%clk
0:00:40.5]} 36. Kg2 {[%clk 0:00:09.5]} 36... Qe4+ {[%clk 0:00:41]} 37. Kg1
{[%clk 0:00:08.1]} 37... Ne3 {[%clk 0:00:40.3]} 38. Qe2 {[%clk 0:00:03.9]} 38...
Kf7 {[%clk 0:00:32.6]} 39. Bc3 {[%clk 0:00:03.3]} 39... b6 {[%clk 0:00:28.6]}
40. Bd2 {[%clk 0:00:03.2]} 40... Qb1+ {[%clk 0:00:28.3]} 41. Kf2 {[%clk
0:00:03.8]} 41... Nd5 {[%clk 0:00:25.4]} 42. g4 {[%clk 0:00:03.2]} 42... Qxb2
{[%clk 0:00:24.5]} 43. Qf3+ {[%clk 0:00:03]} 43... Ke6 {[%clk 0:00:24.9]} 44.
Qe2+ {[%clk 0:00:03.1]} 44... Qe5 {[%clk 0:00:25.2]} 45. Qc4 {[%clk 0:00:01.9]}
45... Qxh2+ {[%clk 0:00:25.6]} 46. Kf1 {[%clk 0:00:02.3]} 46... Qxd2 {[%clk
0:00:24.8]} 47. Qxc6+ {[%clk 0:00:02.9]} 47... Ke5 {[%clk 0:00:25.4]} 48. Qf6+
{[%clk 0:00:01.1]} 48... Kxf6 {[%clk 0:00:25.2]} 0-1

[Event "*** Titled Tuesday Blitz"]
[Site "Chess.com"]
[Date "2021.02.02"]
[Round "7"]
[White "cassoulet"]
[Black "Artyom_ChessMate"]
[Result "1/2-1/2"]
[WhiteElo "2744"]
[BlackElo "2565"]
[TimeControl "180+1"]
[EndTime "11:19:37 PST"]
[Termination "Game drawn by agreement"]

1. e4 {[%clk 0:03:00.9]} 1... c5 {[%clk 0:02:57.7]} 2. Nf3 {[%clk 0:02:59.2]}
2... d6 {[%clk 0:02:58.2]} 3. Nc3 {[%clk 0:02:58.4]} 3... Nf6 {[%clk 0:02:57.3]}
4. d4 {[%clk 0:02:58.8]} 4... cxd4 {[%clk 0:02:57.5]} 5. Nxd4 {[%clk 0:02:59.7]}
5... g6 {[%clk 0:02:58.2]} 6. Be3 {[%clk 0:02:54.7]} 6... Bg7 {[%clk 0:02:58.4]}
7. f3 {[%clk 0:02:55.2]} 7... O-O {[%clk 0:02:58.4]} 8. Qd2 {[%clk 0:02:55.8]}
8... Nc6 {[%clk 0:02:58.4]} 9. O-O-O {[%clk 0:02:55.8]} 9... d5 {[%clk
0:02:58.5]} 10. exd5 {[%clk 0:02:52.9]} 10... Nxd5 {[%clk 0:02:59.4]} 11. Nxc6
{[%clk 0:02:53.5]} 11... bxc6 {[%clk 0:02:58.3]} 12. Nxd5 {[%clk 0:02:54.1]}
12... cxd5 {[%clk 0:02:59.2]} 13. Qxd5 {[%clk 0:02:54.5]} 13... Qc7 {[%clk
0:02:59]} 14. Qc5 {[%clk 0:02:54.9]} 14... Qb7 {[%clk 0:02:58.5]} 15. Qa3 {[%clk
0:02:54.6]} 15... Be6 {[%clk 0:02:46.2]} 16. Ba6 {[%clk 0:02:53.8]} 16... Qc6
{[%clk 0:02:42.1]} 17. Bd4 {[%clk 0:02:52.5]} 17... Bf5 {[%clk 0:02:32.7]} 18.
Bd3 {[%clk 0:02:18.8]} 18... Bxd4 {[%clk 0:02:28.9]} 19. Bxf5 {[%clk 0:02:18.3]}
19... Qf6 {[%clk 0:02:03.6]} 20. Be4 {[%clk 0:02:12.8]} 20... Rab8 {[%clk
0:02:03.1]} 21. c3 {[%clk 0:02:10.8]} 21... Rfc8 {[%clk 0:02:02]} 22. Rd3 {[%clk
0:02:06.7]} 22... Bc5 {[%clk 0:01:39.3]} 23. Qa4 {[%clk 0:02:02.4]} 23... Qb6
{[%clk 0:01:37.1]} 24. Qc2 {[%clk 0:01:58.6]} 24... Qa5 {[%clk 0:01:33.2]} 25.
Kb1 {[%clk 0:01:55.1]} 25... Ba3 {[%clk 0:01:27.2]} 26. b3 {[%clk 0:01:47.7]}
26... Qc5 {[%clk 0:01:25.6]} 27. Rhd1 {[%clk 0:01:46.6]} 27... a5 {[%clk
0:01:24.2]} 28. Rd5 {[%clk 0:01:40.8]} 28... Qc7 {[%clk 0:01:24.1]} 29. Rd7
{[%clk 0:01:35.3]} 29... Qxc3 {[%clk 0:01:23.5]} 30. Rd8+ {[%clk 0:01:35]} 30...
Rxd8 {[%clk 0:01:18]} 31. Rxd8+ {[%clk 0:01:34.9]} 31... Rxd8 {[%clk 0:01:17.7]}
32. Qxc3 {[%clk 0:01:35.5]} 32... Rd1+ {[%clk 0:01:17.2]} 33. Kc2 {[%clk
0:01:35.1]} 33... Rc1+ {[%clk 0:01:17.5]} 34. Kd3 {[%clk 0:01:34.8]} 34... Rxc3+
{[%clk 0:01:18]} 35. Kxc3 {[%clk 0:01:35.7]} 35... Bb4+ {[%clk 0:01:18.4]} 36.
Kc4 {[%clk 0:01:35.2]} 36... Kf8 {[%clk 0:00:54.4]} 37. Kb5 {[%clk 0:01:35.3]}
37... Ke8 {[%clk 0:00:54.5]} 38. a3 {[%clk 0:01:35.6]} 38... Bxa3 {[%clk
0:00:54.5]} 39. Kxa5 {[%clk 0:01:36.5]} 39... Kd7 {[%clk 0:00:54.4]} 40. b4
{[%clk 0:01:35.9]} 40... Kc7 {[%clk 0:00:52.9]} 41. Kb5 {[%clk 0:01:36.1]} 41...
e6 {[%clk 0:00:49.2]} 42. Bc2 {[%clk 0:01:35.5]} 42... h5 {[%clk 0:00:48.1]} 43.
Kc5 {[%clk 0:01:35]} 43... h4 {[%clk 0:00:43.3]} 44. Ba4 {[%clk 0:01:32]} 44...
g5 {[%clk 0:00:39.5]} 45. Kc4 {[%clk 0:01:30.2]} 45... Kd6 {[%clk 0:00:38.1]}
46. Be8 {[%clk 0:01:29.7]} 46... f6 {[%clk 0:00:38.1]} 47. b5 {[%clk 0:01:30]}
47... Bc5 {[%clk 0:00:36.9]} 48. Bf7 {[%clk 0:01:28.3]} 48... Bb6 {[%clk
0:00:36.2]} 49. Kd3 {[%clk 0:01:25.3]} 49... Ke5 {[%clk 0:00:36.1]} 50. Be8
{[%clk 0:01:23.7]} 50... Bg1 {[%clk 0:00:35.4]} 51. h3 {[%clk 0:01:22.9]} 51...
Kf4 {[%clk 0:00:35.6]} 52. Bd7 {[%clk 0:01:20.6]} 52... e5 {[%clk 0:00:35.2]}
53. Bc6 {[%clk 0:01:18.6]} 53... Kg3 {[%clk 0:00:28.5]} 54. Ke4 {[%clk
0:01:18.4]} 54... Kxg2 {[%clk 0:00:22.9]} 55. Bd7 {[%clk 0:01:18.7]} 55... Kg3
{[%clk 0:00:20.7]} 56. Bg4 {[%clk 0:01:18.7]} 56... Bd4 {[%clk 0:00:16.2]} 57.
Kf5 {[%clk 0:01:18.3]} 57... Kf2 {[%clk 0:00:13.7]} 58. Kxf6 {[%clk 0:01:06.6]}
58... e4+ {[%clk 0:00:13.8]} 59. Kxg5 {[%clk 0:01:06.6]} 59... exf3 {[%clk
0:00:04.6]} 60. Kxh4 {[%clk 0:01:06.2]} 60... Ke3 {[%clk 0:00:04.4]} 61. Bxf3
{[%clk 0:00:59.7]} 61... Kxf3 {[%clk 0:00:05.3]} 62. Kg5 {[%clk 0:01:00.4]}
62... Ke4 {[%clk 0:00:05.9]} 63. h4 {[%clk 0:01:00.5]} 63... Kd5 {[%clk
0:00:06.5]} 64. h5 {[%clk 0:00:59.6]} 64... Kc5 {[%clk 0:00:06.9]} 65. h6 {[%clk
0:00:59.9]} 65... Kxb5 {[%clk 0:00:07]} 1/2-1/2

[Event "*** Titled Tuesday Blitz"]
[Site "Chess.com"]
[Date "2021.02.02"]
[Round "7"]
[White "kleopl"]
[Black "JTCoach"]
[Result "0-1"]
[WhiteElo "2511"]
[BlackElo "2695"]
[TimeControl "180+1"]
[EndTime "11:19:37 PST"]
[Termination "JTCoach won by resignation"]

1. c4 {[%clk 0:03:00.9]} 1... e5 {[%clk 0:02:57.4]} 2. Nc3 {[%clk 0:03:00.6]}
2... Nc6 {[%clk 0:02:57.6]} 3. Nf3 {[%clk 0:03:00.6]} 3... g6 {[%clk 0:02:57.6]}
4. e3 {[%clk 0:02:58.4]} 4... Bg7 {[%clk 0:02:55.9]} 5. d4 {[%clk 0:02:58.6]}
5... exd4 {[%clk 0:02:54.6]} 6. exd4 {[%clk 0:02:59.5]} 6... Nge7 {[%clk
0:02:53.5]} 7. d5 {[%clk 0:02:59]} 7... Ne5 {[%clk 0:02:53.2]} 8. Be2 {[%clk
0:02:57.7]} 8... O-O {[%clk 0:02:49.5]} 9. Nd4 {[%clk 0:02:55.9]} 9... d6 {[%clk
0:02:46.9]} 10. O-O {[%clk 0:02:54.1]} 10... Nf5 {[%clk 0:02:45.7]} 11. Nc2
{[%clk 0:02:44.1]} 11... h5 {[%clk 0:02:35.7]} 12. h3 {[%clk 0:02:38.1]} 12...
c6 {[%clk 0:02:28.2]} 13. Rb1 {[%clk 0:02:35.7]} 13... c5 {[%clk 0:02:21.7]} 14.
Ne4 {[%clk 0:02:31.4]} 14... h4 {[%clk 0:02:07]} 15. Bg5 {[%clk 0:02:25.3]}
15... f6 {[%clk 0:01:54.2]} 16. Bd2 {[%clk 0:02:23]} 16... Nf7 {[%clk
0:01:48.2]} 17. Re1 {[%clk 0:02:17]} 17... Re8 {[%clk 0:01:46.9]} 18. Bd3 {[%clk
0:02:15.4]} 18... Ne5 {[%clk 0:01:45.4]} 19. Bc3 {[%clk 0:02:15.2]} 19... Bd7
{[%clk 0:01:38.1]} 20. Ne3 {[%clk 0:02:04.7]} 20... Nxe3 {[%clk 0:01:34.2]} 21.
Rxe3 {[%clk 0:02:05.6]} 21... Bf5 {[%clk 0:01:29.3]} 22. Bxe5 {[%clk 0:01:25.1]}
22... Rxe5 {[%clk 0:01:28.4]} 23. Nc3 {[%clk 0:01:14.4]} 23... Rxe3 {[%clk
0:01:23]} 24. fxe3 {[%clk 0:01:15.3]} 24... Bxd3 {[%clk 0:01:21.8]} 25. Qxd3
{[%clk 0:01:14.9]} 25... f5 {[%clk 0:01:22]} 26. e4 {[%clk 0:01:09.7]} 26... Qg5
{[%clk 0:01:12.6]} 27. exf5 {[%clk 0:01:05.5]} 27... Qxf5 {[%clk 0:01:12.2]} 28.
Qxf5 {[%clk 0:01:04.6]} 28... gxf5 {[%clk 0:01:13.1]} 29. Nb5 {[%clk 0:01:02.6]}
29... Be5 {[%clk 0:01:08.8]} 30. Rf1 {[%clk 0:01:01]} 30... a6 {[%clk
0:01:06.8]} 31. Nc7 {[%clk 0:00:57.7]} 31... Rc8 {[%clk 0:00:58.1]} 32. Ne6
{[%clk 0:00:57.7]} 32... Bxb2 {[%clk 0:00:57.2]} 33. Rxf5 {[%clk 0:00:57.2]}
33... b5 {[%clk 0:00:57.9]} 34. Rf4 {[%clk 0:00:52.5]} 34... bxc4 {[%clk
0:00:38.1]} 35. Rxc4 {[%clk 0:00:51.6]} 35... Bf6 {[%clk 0:00:38.3]} 36. Ra4
{[%clk 0:00:47.2]} 36... c4 {[%clk 0:00:36.8]} 37. Nf4 {[%clk 0:00:32.4]} 37...
c3 {[%clk 0:00:34.6]} 38. Rxa6 {[%clk 0:00:29.2]} 38... Bd4+ {[%clk 0:00:26.9]}
39. Kf1 {[%clk 0:00:28.8]} 39... Rf8 {[%clk 0:00:25.1]} 40. Ke2 {[%clk
0:00:22.7]} 40... Rxf4 {[%clk 0:00:24.8]} 41. Rxd6 {[%clk 0:00:22.8]} 41... Rf2+
{[%clk 0:00:17.5]} 42. Kd3 {[%clk 0:00:22.2]} 42... Rd2+ {[%clk 0:00:11.2]} 43.
Ke4 {[%clk 0:00:20.3]} 43... c2 {[%clk 0:00:11.5]} 44. Rc6 {[%clk 0:00:20.5]}
44... Bb2 {[%clk 0:00:11.6]} 0-1

[Event "*** Titled Tuesday Blitz"]
[Site "Chess.com"]
[Date "2021.02.02"]
[Round "7"]
[White "enriquetejedor"]
[Black "SHIVACalypso"]
[Result "1-0"]
[WhiteElo "2520"]
[BlackElo "2382"]
[TimeControl "180+1"]
[EndTime "11:19:37 PST"]
[Termination "enriquetejedor won by resignation"]

1. e4 {[%clk 0:02:51.7]} 1... e6 {[%clk 0:02:59.8]} 2. d4 {[%clk 0:02:51.5]}
2... d5 {[%clk 0:02:59.3]} 3. Bd3 {[%clk 0:02:52]} 3... c5 {[%clk 0:02:55.5]} 4.
exd5 {[%clk 0:02:50.7]} 4... exd5 {[%clk 0:02:54.6]} 5. dxc5 {[%clk 0:02:42.1]}
5... Bxc5 {[%clk 0:02:53.4]} 6. Nf3 {[%clk 0:02:41.1]} 6... Nf6 {[%clk
0:02:53.7]} 7. O-O {[%clk 0:02:40.7]} 7... O-O {[%clk 0:02:52.4]} 8. h3 {[%clk
0:02:21.1]} 8... Nc6 {[%clk 0:02:51.4]} 9. Nc3 {[%clk 0:02:20.4]} 9... h6 {[%clk
0:02:47.7]} 10. a3 {[%clk 0:02:13.2]} 10... Be6 {[%clk 0:02:47.2]} 11. Bf4
{[%clk 0:02:00.3]} 11... Qd7 {[%clk 0:02:45.7]} 12. Qd2 {[%clk 0:01:57.1]} 12...
Rfe8 {[%clk 0:02:44.1]} 13. Rfe1 {[%clk 0:01:57]} 13... Rad8 {[%clk 0:02:43.5]}
14. b4 {[%clk 0:01:52.4]} 14... Bd6 {[%clk 0:02:41.7]} 15. Bxd6 {[%clk
0:01:50.7]} 15... Qxd6 {[%clk 0:02:42.6]} 16. Nb5 {[%clk 0:01:50.8]} 16... Qd7
{[%clk 0:02:40.5]} 17. Nbd4 {[%clk 0:01:35.6]} 17... a6 {[%clk 0:02:13.7]} 18.
Nxc6 {[%clk 0:01:33.3]} 18... Qxc6 {[%clk 0:02:11.7]} 19. Nd4 {[%clk 0:01:33.8]}
19... Qd7 {[%clk 0:02:09.2]} 20. Re3 {[%clk 0:01:07]} 20... Qc7 {[%clk
0:01:46.1]} 21. Rae1 {[%clk 0:00:56.7]} 21... Bd7 {[%clk 0:01:40.3]} 22. c3
{[%clk 0:00:45.7]} 22... Rxe3 {[%clk 0:01:38.1]} 23. Rxe3 {[%clk 0:00:46.6]}
23... Re8 {[%clk 0:01:37.8]} 24. Rxe8+ {[%clk 0:00:46.6]} 24... Bxe8 {[%clk
0:01:38.7]} 25. f3 {[%clk 0:00:46.2]} 25... Bc6 {[%clk 0:01:36.8]} 26. Qe3
{[%clk 0:00:45.5]} 26... Qd7 {[%clk 0:01:23.5]} 27. Bf5 {[%clk 0:00:43.8]} 27...
Qd6 {[%clk 0:01:14.9]} 28. Bc2 {[%clk 0:00:43.8]} 28... Kf8 {[%clk 0:01:07.8]}
29. Nf5 {[%clk 0:00:41.6]} 29... Qe6 {[%clk 0:01:04.4]} 30. Qc5+ {[%clk
0:00:41.1]} 30... Kg8 {[%clk 0:00:59.4]} 31. Kf2 {[%clk 0:00:41.7]} 31... Nd7
{[%clk 0:00:57.3]} 32. Qd4 {[%clk 0:00:38]} 32... Qe5 {[%clk 0:00:54.3]} 33. f4
{[%clk 0:00:31.9]} 33... Qxd4+ {[%clk 0:00:53.3]} 34. Nxd4 {[%clk 0:00:32.8]}
34... g6 {[%clk 0:00:49.2]} 35. Nxc6 {[%clk 0:00:23]} 35... bxc6 {[%clk
0:00:49.1]} 36. Bd3 {[%clk 0:00:23.9]} 36... Nb8 {[%clk 0:00:45.2]} 37. Ke3
{[%clk 0:00:24.3]} 37... Kf8 {[%clk 0:00:41.9]} 38. Kd4 {[%clk 0:00:24.8]} 38...
Ke7 {[%clk 0:00:42.1]} 39. Kc5 {[%clk 0:00:25.3]} 39... Kd7 {[%clk 0:00:40.6]}
40. Kb6 {[%clk 0:00:25.7]} 40... Kd6 {[%clk 0:00:40.3]} 41. Kb7 {[%clk
0:00:25.4]} 41... Nd7 {[%clk 0:00:40.1]} 42. Bxa6 {[%clk 0:00:25.6]} 42... c5
{[%clk 0:00:39.3]} 43. Bb5 {[%clk 0:00:25.2]} 43... Nf6 {[%clk 0:00:38]} 44. a4
{[%clk 0:00:23.7]} 44... cxb4 {[%clk 0:00:36.6]} 45. cxb4 {[%clk 0:00:23.7]}
45... d4 {[%clk 0:00:36.9]} 46. a5 {[%clk 0:00:21.6]} 46... Nd5 {[%clk 0:00:30]}
47. a6 {[%clk 0:00:22.1]} 47... Nc7 {[%clk 0:00:28.9]} 48. a7 {[%clk 0:00:21.8]}
48... f5 {[%clk 0:00:25.4]} 49. a8=Q {[%clk 0:00:15.7]} 49... Nxa8 {[%clk
0:00:25.7]} 50. Kxa8 {[%clk 0:00:16.6]} 50... Kd5 {[%clk 0:00:26.1]} 51. Bd3
{[%clk 0:00:17]} 51... Kc6 {[%clk 0:00:26.1]} 52. Kb8 {[%clk 0:00:16.6]} 52...
g5 {[%clk 0:00:25.4]} 53. g3 {[%clk 0:00:15.9]} 53... g4 {[%clk 0:00:24.6]} 54.
h4 {[%clk 0:00:15.5]} 1-0

[Event "*** Titled Tuesday Blitz"]
[Site "Chess.com"]
[Date "2021.02.02"]
[Round "7"]
[White "Forantes"]
[Black "Blitzking642"]
[Result "1-0"]
[WhiteElo "2303"]
[BlackElo "2461"]
[TimeControl "180+1"]
[EndTime "11:19:39 PST"]
[Termination "Forantes won by resignation"]

1. Nf3 {[%clk 0:03:00.9]} 1... c5 {[%clk 0:03:00.3]} 2. g3 {[%clk 0:03:00.1]}
2... g6 {[%clk 0:03:00.8]} 3. d4 {[%clk 0:02:59.1]} 3... cxd4 {[%clk 0:02:59.4]}
4. Nxd4 {[%clk 0:03:00]} 4... Bg7 {[%clk 0:02:58.5]} 5. Nb3 {[%clk 0:02:59.3]}
5... d5 {[%clk 0:02:54.5]} 6. Bg2 {[%clk 0:02:59]} 6... Nf6 {[%clk 0:02:55]} 7.
O-O {[%clk 0:02:58.6]} 7... O-O {[%clk 0:02:54.4]} 8. Nc3 {[%clk 0:02:58.7]}
8... e6 {[%clk 0:02:45.9]} 9. a4 {[%clk 0:02:57.1]} 9... Nc6 {[%clk 0:02:46]}
10. Re1 {[%clk 0:02:54.9]} 10... d4 {[%clk 0:02:36]} 11. Ne4 {[%clk 0:02:51.1]}
11... Nd5 {[%clk 0:02:30.2]} 12. Bg5 {[%clk 0:02:42.9]} 12... f6 {[%clk
0:02:24.8]} 13. Bd2 {[%clk 0:02:42.1]} 13... f5 {[%clk 0:02:19.2]} 14. Nec5
{[%clk 0:02:42]} 14... b6 {[%clk 0:02:17.8]} 15. Nd3 {[%clk 0:02:41.5]} 15... e5
{[%clk 0:02:14.4]} 16. a5 {[%clk 0:02:04.8]} 16... e4 {[%clk 0:02:09.7]} 17. Nf4
{[%clk 0:02:05.1]} 17... Nxf4 {[%clk 0:01:59.9]} 18. Bxf4 {[%clk 0:02:06]} 18...
Be6 {[%clk 0:01:59.5]} 19. axb6 {[%clk 0:01:51.7]} 19... axb6 {[%clk 0:02:00.4]}
20. Qd2 {[%clk 0:01:51.3]} 20... Qd7 {[%clk 0:01:57.2]} 21. h4 {[%clk
0:01:35.2]} 21... Rfc8 {[%clk 0:01:53.8]} 22. Rxa8 {[%clk 0:01:01.1]} 22... Rxa8
{[%clk 0:01:52.3]} 23. Rd1 {[%clk 0:01:01.7]} 23... Ra2 {[%clk 0:01:47.4]} 24.
f3 {[%clk 0:01:00.4]} 24... e3 {[%clk 0:01:28.4]} 25. Bxe3 {[%clk 0:01:00.6]}
25... dxe3 {[%clk 0:01:28.4]} 26. Qxd7 {[%clk 0:01:01.3]} 26... Bxd7 {[%clk
0:01:28.1]} 27. Rxd7 {[%clk 0:01:02.2]} 27... Rxb2 {[%clk 0:01:24.8]} 28. f4
{[%clk 0:01:02.4]} 28... Rxc2 {[%clk 0:01:22.2]} 29. Bd5+ {[%clk 0:00:57.7]}
29... Kh8 {[%clk 0:01:13.9]} 30. Bxc6 {[%clk 0:00:57.3]} 30... Rxc6 {[%clk
0:01:10.8]} 31. Rd8+ {[%clk 0:00:57.6]} 31... Bf8 {[%clk 0:01:11.6]} 32. Rxf8+
{[%clk 0:00:58.2]} 32... Kg7 {[%clk 0:01:12.1]} 33. Re8 {[%clk 0:00:52.1]} 33...
Rc3 {[%clk 0:01:12.5]} 34. Nd4 {[%clk 0:00:50.5]} 34... Rc4 {[%clk 0:01:12.7]}
35. Nf3 {[%clk 0:00:46.3]} 35... Rc3 {[%clk 0:01:09.9]} 36. Ne1 {[%clk
0:00:28.8]} 36... b5 {[%clk 0:01:04.4]} 37. Ng2 {[%clk 0:00:27.8]} 37... Rc1+
{[%clk 0:00:59]} 38. Kh2 {[%clk 0:00:27]} 38... b4 {[%clk 0:00:57.7]} 39. Rxe3
{[%clk 0:00:23.6]} 39... Rb1 {[%clk 0:00:57.6]} 40. Re7+ {[%clk 0:00:20.6]}
40... Kf6 {[%clk 0:00:55.8]} 41. Rb7 {[%clk 0:00:21.2]} 41... b3 {[%clk
0:00:52.7]} 42. Ne3 {[%clk 0:00:21.4]} 42... Re1 {[%clk 0:00:49.9]} 43. Rxb3
{[%clk 0:00:18.8]} 43... Rxe2+ {[%clk 0:00:50.3]} 44. Kg1 {[%clk 0:00:15.8]}
44... h6 {[%clk 0:00:50.4]} 45. Nf1 {[%clk 0:00:07.5]} 45... Rc2 {[%clk
0:00:49.3]} 46. Rb6+ {[%clk 0:00:07]} 46... Kf7 {[%clk 0:00:49.4]} 47. Rd6
{[%clk 0:00:06.8]} 47... Re2 {[%clk 0:00:48.2]} 48. Rd3 {[%clk 0:00:06.7]} 48...
Rc2 {[%clk 0:00:47.7]} 49. Rf3 {[%clk 0:00:07]} 49... Re2 {[%clk 0:00:47.2]} 50.
Rf2 {[%clk 0:00:07.4]} 50... Re4 {[%clk 0:00:47.8]} 51. Kg2 {[%clk 0:00:07.7]}
51... Re1 {[%clk 0:00:46.2]} 52. Rb2 {[%clk 0:00:07.6]} 52... Rc1 {[%clk
0:00:44.9]} 53. Nd2 {[%clk 0:00:07.3]} 53... Rc3 {[%clk 0:00:43.7]} 54. Nf3
{[%clk 0:00:07.2]} 54... Kf6 {[%clk 0:00:43.7]} 55. Rb6+ {[%clk 0:00:06.9]}
55... Kg7 {[%clk 0:00:42.5]} 56. Ne5 {[%clk 0:00:07.5]} 56... g5 {[%clk
0:00:42.3]} 57. hxg5 {[%clk 0:00:07.1]} 57... hxg5 {[%clk 0:00:43.2]} 58. Rg6+
{[%clk 0:00:07.5]} 58... Kh7 {[%clk 0:00:43.7]} 59. Rxg5 {[%clk 0:00:07.8]}
59... Rc2+ {[%clk 0:00:44.2]} 60. Kh3 {[%clk 0:00:08]} 1-0